bitfinex-derivatives/quotes_BTCF0:USTF0_20250106
["timestamp","ask_amount","ask_price","bid_price","bid_amount"]
[1736173397720,0.050605,98839.0,98836.0,0.050606]
[1736173398022,0.411405,98839.0,98836.0,0.050606]
[1736173398227,0.050606,98837.0,98836.0,0.050606]
[1736173399514,0.051606,98837.0,98836.0,0.058606]
[1736173400420,0.001,98837.0,98836.0,0.058606]
[1736173400623,0.001,98837.0,98836.0,0.419406]
[1736173401329,0.050597,98854.0,98853.0,0.050597]
[1736173402023,0.20025412,98858.0,98857.0,0.050595]
[1736173402211,0.050597,98854.0,98853.0,0.110597]
[1736173402823,0.411395,98859.0,98858.0,0.050595]
[1736173403124,0.551395,98859.0,98858.0,0.050595]
[1736173403526,0.551395,98859.0,98853.0,0.061]
[1736173403713,0.050597,98854.0,98853.0,0.111597]
[1736173405415,0.051597,98854.0,98853.0,0.111597]
[1736173405614,0.051597,98854.0,98853.0,0.051597]
[1736173406012,0.001,98854.0,98853.0,0.051597]
[1736173406227,0.3608,98863.0,98862.0,0.050593]
[1736173406416,0.411392,98863.0,98862.0,0.050593]
[1736173406812,0.3608,98863.0,98854.0,0.4189]
[1736173407016,0.050596,98858.0,98857.0,0.050595]
[1736173407228,0.080596,98858.0,98857.0,0.050595]
[1736173408229,0.080596,98858.0,98847.0,0.0506]
[1736173408230,0.0506,98848.0,98847.0,0.0506]
[1736173408420,0.1906,98848.0,98847.0,0.0506]
[1736173409727,0.1906,98848.0,98847.0,0.0516]
[1736173411623,0.14,98848.0,98847.0,0.0536]
[1736173411819,0.3608,98854.0,98847.0,0.0536]
[1736173412018,0.5108,98854.0,98853.0,0.050597]
[1736173412219,0.5108,98854.0,98853.0,0.110597]
[1736173412619,0.5108,98854.0,98853.0,0.050597]
[1736173413029,0.5118,98854.0,98853.0,0.050597]
[1736173414025,0.5128,98854.0,98853.0,0.050597]
[1736173414622,0.5118,98854.0,98853.0,0.050597]
[1736173414820,0.5118,98854.0,98853.0,0.111597]
[1736173415424,0.561397,98854.0,98853.0,0.111597]
[1736173415621,0.562397,98854.0,98853.0,0.111597]
[1736173415929,0.5118,98854.0,98853.0,0.111597]
[1736173416321,0.15,98854.0,98853.0,0.111597]
[1736173416628,0.12006367,98865.0,98864.0,0.050592]
[1736173416831,0.14965912,98871.0,98870.0,0.050589]
[1736173417123,0.14965912,98871.0,98870.0,0.411389]
[1736173417318,0.14965912,98871.0,98870.0,0.471389]
[1736173417517,0.12010047,98873.0,98870.0,0.471389]
[1736173418031,0.12010047,98873.0,98872.0,0.050588]
[1736173419125,0.05210295,98877.0,98876.0,0.050586]
[1736173420732,0.05710295,98877.0,98876.0,0.050586]
[1736173421527,0.15710295,98877.0,98876.0,0.050586]
[1736173422330,0.05710295,98877.0,98876.0,0.050586]
[1736173423235,0.13710295,98877.0,98876.0,0.050586]
[1736173425633,0.05059,98868.0,98867.0,0.05059]
[1736173425835,0.050592,98864.0,98863.0,0.23217199]
[1736173426038,0.050594,98859.0,98854.0,0.050597]
[1736173426237,0.180594,98859.0,98854.0,0.050597]
[1736173426540,0.180594,98859.0,98857.0,0.050595]
[1736173427633,0.13,98859.0,98857.0,0.050595]
[1736173427939,0.050595,98858.0,98857.0,0.050595]
[1736173428146,0.190595,98858.0,98857.0,0.050595]
[1736173428334,0.14,98858.0,98853.0,0.3608]
[1736173428535,0.050597,98854.0,98853.0,0.411397]
[1736173431138,0.050597,98854.0,98853.0,0.471397]
[1736173431340,0.051597,98854.0,98853.0,0.471397]
[1736173431840,0.050597,98854.0,98853.0,0.472397]
[1736173432543,0.051597,98854.0,98853.0,0.472397]
[1736173433746,0.051597,98854.0,98853.0,0.471397]
[1736173433747,0.052597,98854.0,98853.0,0.471397]
[1736173434144,0.052597,98854.0,98853.0,0.411397]
[1736173434444,0.051597,98854.0,98853.0,0.411397]
[1736173435246,0.050597,98854.0,98853.0,0.411397]
[1736173436246,0.180597,98854.0,98853.0,0.411397]
[1736173437349,0.180597,98854.0,98853.0,0.59292802]
[1736173439742,0.180597,98854.0,98853.0,0.65292802]
[1736173439942,0.180597,98854.0,98853.0,0.471397]
[1736173440443,0.180597,98854.0,98853.0,0.472397]
[1736173440839,0.36156,98880.0,98871.0,0.050587]
[1736173441042,0.05059,98872.0,98871.0,0.050586]
[1736173441238,0.05059,98872.0,98866.0,0.05059]
[1736173441239,0.050592,98867.0,98866.0,0.05059]
[1736173441447,0.190592,98867.0,98866.0,0.05059]
[1736173441747,0.050592,98863.0,98862.0,0.3608]
[1736173441945,0.190592,98863.0,98862.0,0.3608]
[1736173442843,0.050593,98861.0,98860.0,0.050593]
[1736173443043,0.190593,98861.0,98860.0,0.050593]
[1736173443443,0.050596,98857.0,98856.0,0.050596]
[1736173443752,0.210596,98857.0,98856.0,0.050596]
[1736173444940,0.16,98857.0,98856.0,0.050596]
[1736173445345,0.16,98857.0,98856.0,0.053596]
[1736173445551,0.161,98857.0,98856.0,0.053596]
[1736173446046,0.211595,98857.0,98856.0,0.053596]
[1736173446252,0.16,98857.0,98856.0,0.053596]
[1736173446554,0.16,98857.0,98856.0,0.054596]
[1736173447150,0.16,98857.0,98856.0,0.053596]
[1736173447151,0.210595,98857.0,98856.0,0.053596]
[1736173447656,0.16,98857.0,98856.0,0.051596]
[1736173448348,0.210595,98857.0,98856.0,0.050596]
[1736173449160,0.210595,98857.0,98856.0,0.001]
[1736173449849,0.210595,98857.0,98854.0,0.08970233]
[1736173449850,0.16,98857.0,98854.0,0.08970233]
[1736173450054,0.16,98857.0,98849.0,0.24215475]
[1736173450055,0.050599,98850.0,98849.0,0.24215475]
[1736173450251,0.571399,98850.0,98849.0,0.17930841]
[1736173450456,0.050602,98843.0,98842.0,0.30199198]
[1736173450755,0.210602,98843.0,98842.0,0.30199198]
[1736173451464,0.050609,98831.0,98828.0,0.05061]
[1736173451852,0.200609,98831.0,98828.0,0.05061]
[1736173452951,0.200609,98831.0,98830.0,0.00451762]
[1736173453862,0.200609,98831.0,98818.0,0.050615]
[1736173453863,0.050617,98819.0,98818.0,0.050615]
[1736173454562,0.050617,98819.0,98810.0,0.0613]
[1736173454755,0.050619,98811.0,98810.0,0.111919]
[1736173455162,0.050617,98816.0,98815.0,0.050616]
[1736173455859,0.001,98819.0,98810.0,0.0633]
[1736173456055,0.050614,98821.0,98820.0,0.050614]
[1736173458157,0.050614,98821.0,98815.0,0.011]
[1736173458158,0.050611,98826.0,98825.0,0.05061]
[1736173458353,0.13,98826.0,98815.0,0.011]
[1736173458559,0.051614,98821.0,98820.0,0.01]
[1736173458862,0.191614,98821.0,98820.0,0.07]
[1736173459263,0.191614,98821.0,98820.0,0.068]
[1736173461866,0.191614,98821.0,98820.0,0.00726922]
[1736173463764,0.20165989,98821.0,98820.0,0.00726922]
[1736173465164,0.20165989,98821.0,98820.0,0.008]
[1736173466856,0.15104589,98821.0,98801.0,0.110624]
[1736173467061,0.050623,98802.0,98801.0,0.110624]
[1736173468172,0.050623,98802.0,98801.0,0.06]
[1736173468361,0.572423,98802.0,98801.0,0.009]
[1736173469170,0.050624,98801.0,98800.0,0.09217461]
[1736173469372,0.249124,98801.0,98800.0,0.07048461]
[1736173470166,0.249124,98801.0,98800.0,6.1e-07]
[1736173471975,0.050638,98774.0,98773.0,0.0558]
[1736173472274,0.050638,98774.0,98773.0,0.12226992]
[1736173472668,0.050638,98774.0,98773.0,0.07163192]
[1736173472873,0.050638,98774.0,98773.0,0.0558]
[1736173473070,0.050638,98774.0,98773.0,0.07163183]
[1736173473470,0.3608,98784.0,98773.0,0.43243183]
[1736173473772,0.050637,98779.0,98778.0,0.050635]
[1736173475574,0.053637,98779.0,98778.0,0.050635]
[1736173476876,0.054637,98779.0,98778.0,0.050635]
[1736173477476,0.3608,98790.0,98788.0,0.05063]
[1736173477672,0.050627,98796.0,98795.0,0.050626]
[1736173477874,0.190627,98796.0,98795.0,0.050626]
[1736173478175,0.190627,98796.0,98795.0,0.110626]
[1736173478378,0.190627,98796.0,98795.0,0.06]
[1736173478682,0.05063,98790.0,98789.0,0.05063]
[1736173478978,0.05063,98790.0,98789.0,0.11063]
[1736173479279,0.49248472,98802.0,98801.0,0.050624]
[1736173479280,0.00151883,98802.0,98801.0,0.050624]
[1736173479476,0.17017903,98808.0,98807.0,0.050621]
[1736173479779,0.33017903,98808.0,98807.0,0.050621]
[1736173480481,0.050623,98803.0,98802.0,0.0564]
[1736173480689,0.200623,98803.0,98802.0,0.0564]
[1736173482075,0.15,98803.0,98802.0,0.107023]
[1736173482479,0.152,98803.0,98802.0,0.107023]
[1736173482976,0.002,98808.0,98802.0,0.167023]
[1736173483176,0.11955903,98819.0,98807.0,0.3608]
[1736173483379,0.27955903,98819.0,98818.0,0.050615]
[1736173483879,0.11955903,98819.0,98818.0,0.050615]
[1736173484382,0.11955903,98819.0,98818.0,0.110615]
[1736173484775,0.001,98819.0,98818.0,0.110615]
[1736173485099,0.00151848,98828.0,98818.0,0.06]
[1736173485298,0.00151848,98828.0,98827.0,0.050611]
[1736173486276,0.05212848,98828.0,98827.0,0.050611]
[1736173486479,0.05512848,98828.0,98827.0,0.110611]
[1736173486988,0.06112848,98828.0,98827.0,0.110611]
[1736173487187,0.06112848,98828.0,98827.0,0.050611]
[1736173488679,0.04051848,98828.0,98826.0,0.0599]
[1736173488880,0.050611,98827.0,98826.0,0.0599]
[1736173489081,0.140611,98827.0,98826.0,0.0599]
[1736173489784,0.050615,98818.0,98817.0,0.00056]
[1736173489990,0.050614,98820.0,98814.0,0.3608]
[1736173490314,0.050614,98820.0,98819.0,0.050615]
[1736173490492,0.3608,98827.0,98814.0,0.3608]
[1736173490683,0.050617,98815.0,98814.0,0.3608]
[1736173491880,0.060617,98815.0,98814.0,0.3608]
[1736173492176,0.060617,98815.0,98814.0,0.411417]
[1736173492380,0.061617,98815.0,98814.0,0.411417]
[1736173492694,0.052617,98815.0,98814.0,0.411417]
[1736173493091,0.112617,98815.0,98814.0,0.411417]
[1736173493883,0.112617,98815.0,98808.0,0.0599]
[1736173493884,0.05062,98809.0,98808.0,0.11052]
[1736173495290,0.05062,98809.0,98808.0,0.11152]
[1736173495595,0.18062,98809.0,98808.0,0.001]
[1736173495781,0.05062,98809.0,98808.0,0.05162]
[1736173496294,0.050618,98815.0,98814.0,0.050617]
[1736173496493,0.200618,98815.0,98814.0,0.050617]
[1736173497487,0.201618,98815.0,98814.0,0.050617]
[1736173498385,0.202618,98815.0,98814.0,0.050617]
[1736173500297,0.002,98815.0,98814.0,0.050617]
[1736173500590,0.050598,98852.0,98834.0,0.050607]
[1736173500795,0.00080001,98837.0,98836.0,0.050606]
[1736173500997,0.050599,98850.0,98841.0,0.050604]
[1736173501187,0.050602,98844.0,98841.0,0.050604]
[1736173501383,0.5804327,98854.0,98841.0,0.050604]
[1736173501595,0.412158,98854.0,98853.0,0.050597]
[1736173501789,0.3608,98854.0,98853.0,0.050597]
[1736173502198,0.411397,98854.0,98853.0,0.050597]
[1736173502393,0.01014696,98860.0,98859.0,0.050594]
[1736173502593,0.00151787,98862.0,98861.0,0.050593]
[1736173503298,0.23017594,98879.0,98856.0,0.3608]
[1736173503592,0.17959094,98879.0,98878.0,0.050585]
[1736173504690,0.17959094,98879.0,98878.0,0.110585]
[1736173504883,0.050575,98897.0,98878.0,0.06]
[1736173505085,0.050575,98897.0,98896.0,0.3608]
[1736173505282,0.00151747,98899.0,98896.0,0.3608]
[1736173505495,0.00151747,98899.0,98897.0,0.050575]
[1736173506388,0.17959094,98919.0,98918.0,0.050564]
[1736173506791,0.050558,98930.0,98928.0,0.050559]
[1736173506993,0.050555,98937.0,98927.0,0.3608]
[1736173507193,0.3608,98938.0,98936.0,0.050555]
[1736173507394,0.050555,98936.0,98929.0,0.050558]
[1736173507596,0.050559,98929.0,98927.0,0.00056]
[1736173507787,0.050565,98917.0,98916.0,0.3608]
[1736173508199,0.45898977,98930.0,98907.0,0.3608]
[1736173508498,0.050569,98909.0,98907.0,0.3608]
[1736173508694,0.3608,98919.0,98897.0,0.050575]
[1736173508695,0.050565,98917.0,98897.0,0.050575]
[1736173508892,0.050572,98904.0,98897.0,0.050575]
[1736173509198,0.050572,98904.0,98900.0,0.050573]
[1736173509388,0.009,98917.0,98892.0,0.3608]
[1736173509594,0.050573,98900.0,98893.0,0.050577]
[1736173509792,0.050573,98900.0,98892.0,0.3608]
[1736173509993,0.050573,98900.0,98894.0,0.050576]
[1736173510195,0.050573,98900.0,98896.0,0.05209162]
[1736173510998,0.050574,98899.0,98896.0,0.05209162]
[1736173512099,0.050574,98899.0,98897.0,0.050575]
[1736173512304,0.053574,98899.0,98897.0,0.050575]
[1736173512692,0.054574,98899.0,98897.0,0.050575]
[1736173513394,0.053574,98899.0,98897.0,0.050575]
[1736173513703,0.054574,98899.0,98897.0,0.050575]
[1736173514495,0.004,98899.0,98897.0,0.050575]
[1736173516997,0.004,98899.0,98896.0,0.00151662]
[1736173516998,0.050574,98898.0,98896.0,0.00151662]
[1736173517392,0.180574,98898.0,98896.0,0.00151662]
[1736173518192,0.13,98898.0,98897.0,0.050575]
[1736173518400,0.004,98899.0,98897.0,0.050575]
[1736173519005,0.003,98898.0,98897.0,0.050575]
[1736173519701,0.002,98898.0,98897.0,0.050575]
[1736173520599,0.001,98898.0,98897.0,0.050575]
[1736173520795,0.0587,98921.0,98896.0,0.00151662]
[1736173521119,0.09,98921.0,98920.0,0.050563]
[1736173521489,0.050566,98915.0,98913.0,0.050566]
[1736173521695,0.050569,98909.0,98908.0,0.050569]
[1736173522201,0.0597,98914.0,98906.0,0.3608]
[1736173522202,0.05057,98907.0,98906.0,0.3608]
[1736173522703,0.050564,98919.0,98910.0,0.050568]
[1736173522901,0.003,98909.0,98907.0,0.05057]
[1736173523701,0.002,98907.0,98906.0,0.3608]
[1736173523901,0.009,98921.0,98920.0,0.050563]
[1736173524102,0.009,98921.0,98920.0,0.411363]
[1736173524308,0.050561,98924.0,98923.0,0.050562]
[1736173524907,0.0597,98930.0,98929.0,0.050558]
[1736173525202,0.0697,98930.0,98929.0,0.050558]
[1736173526204,0.01,98930.0,98929.0,0.050558]
[1736173526611,0.016,98930.0,98929.0,0.051558]
[1736173527108,0.025,98930.0,98929.0,0.051558]
[1736173527906,0.025,98930.0,98929.0,0.001]
[1736173528505,0.075558,98930.0,98929.0,0.001]
[1736173528900,0.075558,98930.0,98929.0,0.051558]
[1736173529304,0.025,98930.0,98929.0,0.051558]
[1736173530805,0.075558,98930.0,98929.0,0.001]
[1736173531907,0.050563,98920.0,98897.0,0.3608]
[1736173532111,0.3608,98919.0,98897.0,0.3608]
[1736173532410,0.050568,98912.0,98911.0,0.050567]
[1736173532611,0.090568,98912.0,98911.0,0.050567]
[1736173532800,0.3608,98919.0,98918.0,0.050564]
[1736173533223,0.004,98920.0,98917.0,0.3608]
[1736173533410,0.004,98920.0,98919.0,0.050564]
[1736173533805,0.05057,98906.0,98905.0,0.3614]
[1736173534116,0.05057,98906.0,98905.0,0.3608]
[1736173534610,0.050568,98911.0,98905.0,0.3608]
[1736173534817,0.060568,98911.0,98910.0,0.050568]
[1736173536306,0.063568,98911.0,98910.0,0.050568]
[1736173536707,0.070568,98911.0,98910.0,0.050568]
[1736173537216,0.063568,98911.0,98910.0,0.050568]
[1736173537403,0.070568,98911.0,98910.0,0.050568]
[1736173537605,0.02,98911.0,98901.0,0.3608]
[1736173537810,0.050572,98902.0,98901.0,0.3608]
[1736173538009,0.050573,98901.0,98900.0,0.050573]
[1736173538510,0.01,98911.0,98900.0,0.050573]
[1736173538511,0.05057,98906.0,98905.0,0.050569]
[1736173540216,0.003,98911.0,98905.0,0.050569]
[1736173540217,0.003,98911.0,98910.0,0.050568]
[1736173541014,0.14986984,98915.0,98905.0,0.050569]
[1736173541212,0.002,98906.0,98905.0,0.14875877]
[1736173541411,0.14986984,98922.0,98905.0,0.050569]
[1736173541613,0.14986984,98922.0,98921.0,0.050563]
[1736173541815,0.050562,98923.0,98922.0,0.050562]
[1736173542121,0.060562,98923.0,98922.0,0.050562]
[1736173542415,0.0101025,98932.0,98915.0,0.0603]
[1736173542615,0.050559,98928.0,98927.0,0.050558]
[1736173542822,0.100559,98928.0,98927.0,0.050558]
[1736173543017,0.05,98928.0,98927.0,0.050558]
[1736173543516,0.050559,98929.0,98928.0,0.050559]
[1736173544819,0.050562,98924.0,98923.0,0.050561]
[1736173546012,0.055562,98924.0,98923.0,0.050561]
[1736173546717,0.064562,98924.0,98923.0,0.050561]
[1736173547421,0.014,98924.0,98923.0,0.050561]
[1736173551235,0.15036082,98938.0,98937.0,0.050554]
[1736173551741,0.15036082,98938.0,98937.0,0.110554]
[1736173552453,0.050545,98956.0,98946.0,0.05055]
[1736173552840,0.3708,98954.0,98946.0,0.05055]
[1736173553037,0.3608,98954.0,98946.0,0.05055]
[1736173553234,0.18043298,98958.0,98953.0,0.050546]
[1736173553447,0.18043298,98958.0,98957.0,0.050544]
[1736173553941,0.18127298,98976.0,98951.0,0.3608]
[1736173554138,0.18043298,98976.0,98975.0,0.050535]
[1736173555443,0.050531,98982.0,98981.0,0.050532]
[1736173555637,0.060531,98982.0,98981.0,0.050532]
[1736173556943,0.069531,98982.0,98981.0,0.051532]
[1736173557150,0.069531,98982.0,98981.0,0.001]
[1736173557730,0.074531,98982.0,98981.0,0.002]
[1736173558035,0.435331,98982.0,98981.0,0.002]
[1736173559022,0.445275,98982.0,98981.0,0.002]
[1736173560427,0.435331,98982.0,98981.0,0.002]
[1736173560626,0.3848,98982.0,98981.0,0.002]
[1736173560820,0.014,98982.0,98981.0,0.002]
[1736173561015,0.014,98982.0,98981.0,0.062]
[1736173561533,0.014,98982.0,98981.0,0.002]
[1736173564329,0.2748,98989.0,98981.0,0.002]
[1736173564524,0.13,98989.0,98981.0,0.002]
[1736173564724,0.13,98989.0,98988.0,0.050528]
[1736173565930,0.180528,98989.0,98988.0,0.050528]
[1736173566435,0.186528,98989.0,98988.0,0.050528]
[1736173566638,0.191528,98989.0,98988.0,0.050528]
[1736173567231,0.138,98989.0,98988.0,0.050528]
[1736173567537,0.008,98989.0,98988.0,0.050528]
[1736173567731,0.00151602,98994.0,98993.0,0.050526]
[1736173567927,0.050516,99012.0,98993.0,0.050526]
[1736173568126,0.200516,99012.0,99010.0,0.411317]
[1736173569123,0.15,99012.0,99010.0,0.411317]
[1736173569632,0.0575,99016.0,99010.0,0.3608]
[1736173569934,0.1175,99016.0,99015.0,0.050515]
[1736173570138,0.06,99016.0,99015.0,0.050515]
[1736173570328,0.050509,99027.0,99010.0,0.3608]
[1736173570529,0.050509,99025.0,99024.0,0.05051]
[1736173570749,0.130509,99025.0,99024.0,0.05051]
[1736173571226,0.050511,99022.0,99015.0,0.001]
[1736173571428,0.057514,99016.0,99015.0,0.002]
[1736173571828,0.057514,99016.0,99015.0,0.001]
[1736173572626,0.177514,99016.0,99015.0,0.001]
[1736173572827,0.05052,99004.0,99003.0,0.05052]
[1736173573540,0.05052,99004.0,98991.0,0.4208]
[1736173573541,0.050526,98992.0,98991.0,0.3608]
[1736173573734,0.050526,98992.0,98978.0,0.050533]
[1736173573735,0.050535,98979.0,98978.0,0.050533]
[1736173574332,0.3608,98999.0,98973.0,0.3608]
[1736173574636,0.5008,98999.0,98973.0,0.3608]
[1736173574838,0.050533,98979.0,98978.0,0.056533]
[1736173576032,0.050533,98979.0,98978.0,0.059533]
[1736173576437,0.050533,98979.0,98978.0,0.009]
[1736173576741,0.050533,98979.0,98978.0,0.003]
[1736173576742,0.110533,98979.0,98978.0,0.003]
[1736173577639,0.050533,98979.0,98978.0,0.008]
[1736173578938,0.050533,98979.0,98978.0,0.058533]
[1736173580937,0.050528,98989.0,98988.0,0.050528]
[1736173581138,0.3608,99002.0,98988.0,0.3608]
[1736173581341,0.050526,98994.0,98993.0,0.050526]
[1736173581840,0.3608,99002.0,98989.0,0.06]
[1736173582142,0.3608,99002.0,98978.0,0.3694]
[1736173582143,0.050531,98985.0,98984.0,0.05053]
[1736173582439,0.050527,98992.0,98991.0,0.050526]
[1736173583340,0.3618,99002.0,98991.0,0.06]
[1736173583546,0.111,99002.0,98996.0,0.3608]
[1736173583754,0.001,99002.0,98996.0,0.3608]
[1736173583931,0.11969641,99007.0,99006.0,0.050519]
[1736173584130,0.18021541,99007.0,99006.0,0.050519]
[1736173585544,0.060519,99007.0,99006.0,0.050519]
[1736173586948,0.062519,99007.0,99006.0,0.050519]
[1736173587741,0.050519,99006.0,99005.0,0.3608]
[1736173588446,0.050519,99006.0,99005.0,0.41132]
[1736173588851,0.002,99007.0,99006.0,0.050519]
[1736173589047,0.001,99006.0,99005.0,0.41132]
[1736173589952,0.0643,99019.0,99005.0,0.41132]
[1736173590155,0.002,99007.0,99006.0,0.050519]
[1736173590957,0.11969641,99020.0,99019.0,0.050513]
[1736173591149,0.0639,99032.0,99024.0,0.05051]
[1736173591150,0.11969641,99025.0,99024.0,0.05051]
[1736173591352,0.17969641,99025.0,99024.0,0.05051]
[1736173592042,0.11969641,99025.0,99024.0,0.05051]
[1736173592450,0.11969641,99025.0,99024.0,0.41151]
[1736173592651,0.20046098,99044.0,99043.0,0.0505]
[1736173592852,0.17996098,99044.0,99043.0,0.0505]
[1736173593261,0.14996098,99044.0,99043.0,0.0505]
[1736173593552,0.050489,99066.0,99063.0,0.05049]
[1736173593759,0.00151484,99065.0,99064.0,0.3608]
[1736173594649,0.00151484,99065.0,99064.0,0.4208]
[1736173594845,0.00151484,99065.0,99064.0,0.3608]
[1736173595248,0.00151484,99065.0,99064.0,0.4208]
[1736173595454,0.21050515,99082.0,99081.0,0.050481]
[1736173595654,0.01025307,99089.0,99088.0,0.050477]
[1736173595955,0.1,99100.0,99087.0,0.050478]
[1736173596259,0.24,99100.0,99091.0,0.3608]
[1736173596445,0.050474,99095.0,99091.0,0.3608]
[1736173596649,0.050475,99092.0,99091.0,0.3608]
[1736173598346,0.050472,99099.0,99081.0,0.3608]
[1736173598552,0.050476,99090.0,99073.0,0.3608]
[1736173598750,0.050484,99075.0,99073.0,0.3608]
[1736173599277,0.3608,99085.0,99067.0,0.050488]
[1736173599557,0.14715529,99080.0,99069.0,0.3608]
[1736173599946,0.050486,99071.0,99068.0,0.3608]
[1736173600151,0.050486,99071.0,99067.0,0.050488]
[1736173600352,0.14715529,99080.0,99060.0,0.3608]
[1736173600552,0.050491,99062.0,99060.0,0.3608]
[1736173601748,0.1867,99079.0,99060.0,0.3608]
[1736173601960,0.050487,99071.0,99065.0,0.050489]
[1736173602460,0.1867,99079.0,99065.0,0.050489]
[1736173602663,0.2067,99079.0,99065.0,0.050489]
[1736173603264,0.050488,99068.0,99065.0,0.050489]
[1736173603456,0.050488,99067.0,99065.0,0.050489]
[1736173603658,0.050488,99067.0,99065.0,0.051489]
[1736173603659,0.060488,99067.0,99065.0,0.051489]
[1736173604759,0.060488,99067.0,99065.0,0.001]
[1736173604955,0.061488,99067.0,99065.0,0.001]
[1736173606162,0.05049,99063.0,99060.0,0.3608]
[1736173606362,0.001,99067.0,99060.0,0.3608]
[1736173606565,0.050491,99062.0,99060.0,0.3608]
[1736173607167,0.060491,99062.0,99060.0,0.3608]
[1736173608672,0.061491,99062.0,99060.0,0.3608]
[1736173609164,0.07139059,99062.0,99060.0,0.3608]
[1736173609858,0.07139059,99062.0,99060.0,0.411291]
[1736173610552,0.07139059,99062.0,99060.0,0.3608]
[1736173611763,0.07139059,99062.0,99060.0,0.411291]
[1736173611953,0.061491,99062.0,99060.0,0.3608]
[1736173612157,0.011,99062.0,99061.0,0.050491]
[1736173613566,0.011,99062.0,99061.0,0.110491]
[1736173614055,0.011,99062.0,99060.0,0.3608]
[1736173614056,0.050491,99061.0,99060.0,0.3608]
[1736173614456,0.050491,99061.0,99060.0,0.411292]
[1736173614658,0.050491,99061.0,99060.0,0.471292]
[1736173614853,0.001,99062.0,99061.0,0.050491]
[1736173615368,0.001,99062.0,99060.0,0.42132]
[1736173615369,0.050489,99066.0,99065.0,0.050489]
[1736173615569,0.060489,99066.0,99065.0,0.050489]
[1736173615775,0.060489,99066.0,99065.0,0.110489]
[1736173616660,0.064489,99066.0,99065.0,0.110489]
[1736173617365,0.014,99066.0,99065.0,0.110489]
[1736173617764,0.064489,99066.0,99065.0,0.110489]
[1736173617961,0.064489,99066.0,99065.0,0.050489]
[1736173618177,0.014,99066.0,99065.0,0.050489]
[1736173618467,0.015,99066.0,99065.0,0.050489]
[1736173620071,0.050491,99061.0,99060.0,0.050492]
[1736173620370,0.055489,99066.0,99065.0,0.050489]
[1736173620585,0.065489,99066.0,99065.0,0.050489]
[1736173621369,0.064489,99066.0,99065.0,0.050489]
[1736173621771,0.060489,99066.0,99065.0,0.050489]
[1736173622071,0.050493,99057.0,99056.0,0.18177189]
[1736173622272,0.200493,99057.0,99056.0,0.00151417]
[1736173623377,0.201493,99057.0,99056.0,0.00151417]
[1736173623566,0.201493,99057.0,99056.0,0.36231417]
[1736173623775,0.201493,99057.0,99056.0,0.41280817]
[1736173625074,0.20160872,99057.0,99056.0,0.41280817]
[1736173625675,0.15111572,99057.0,99056.0,0.41280817]
[1736173626596,0.00111572,99057.0,99056.0,0.47280817]
[1736173628409,0.00111572,99057.0,99056.0,0.76509965]
[1736173629299,0.00111572,99057.0,99056.0,1.11380668]
[1736173632223,0.09014819,99077.0,99059.0,0.050492]
[1736173632408,0.09014819,99077.0,99076.0,0.050483]
[1736173632914,0.09014819,99077.0,99076.0,0.110483]
[1736173633300,0.09614819,99077.0,99076.0,0.110483]
[1736173633701,0.15030708,99090.0,99076.0,0.110483]
[1736173633908,0.20077908,99098.0,99089.0,0.3608]
[1736173634103,0.32077908,99098.0,99097.0,0.050473]
[1736173634313,0.32077908,99098.0,99097.0,0.411273]
[1736173634809,0.32077908,99098.0,99097.0,0.050473]
[1736173635320,0.27030708,99098.0,99097.0,0.050473]
[1736173635701,0.12,99098.0,99097.0,0.050473]
[1736173636099,0.124,99098.0,99097.0,0.050473]
[1736173636400,0.124,99098.0,99097.0,0.051473]
[1736173637089,0.124,99098.0,99097.0,0.412273]
[1736173638390,0.124,99098.0,99097.0,0.051473]
[1736173638592,0.124,99098.0,99097.0,0.59356429]
[1736173639690,0.124,99098.0,99097.0,0.412273]
[1736173640999,0.004,99098.0,99097.0,0.412273]
[1736173641999,0.1,99100.0,99099.0,0.050472]
[1736173643098,0.1,99100.0,99099.0,0.051472]
[1736173643300,0.11,99100.0,99099.0,0.051472]
[1736173643693,0.11,99100.0,99099.0,0.050472]
[1736173644192,0.1,99100.0,99099.0,0.050472]
[1736173644400,0.050459,99126.0,99125.0,0.050458]
[1736173644694,0.15,99126.0,99125.0,0.050458]
[1736173645393,0.0654,99134.0,99133.0,0.050454]
[1736173645588,0.275854,99134.0,99133.0,0.050454]
[1736173645895,0.050456,99130.0,99129.0,0.3608]
[1736173646208,0.110456,99130.0,99129.0,0.3608]
[1736173646593,0.110456,99130.0,99110.0,0.3608]
[1736173646795,0.050457,99128.0,99110.0,0.3608]
[1736173647008,0.050464,99116.0,99115.0,0.050464]
[1736173647896,0.050465,99112.0,99111.0,0.18071291]
[1736173648605,0.050466,99111.0,99110.0,0.3608]
[1736173648795,0.115366,99111.0,99110.0,0.3608]
[1736173648994,0.115366,99111.0,99110.0,0.411266]
[1736173650098,0.115366,99111.0,99110.0,0.050466]
[1736173653500,0.0649,99111.0,99110.0,0.050466]
[1736173653698,0.115366,99111.0,99110.0,0.050466]
[1736173654504,0.050471,99106.0,99105.0,0.050468]
[1736173659819,0.0649,99111.0,99110.0,0.050466]
[1736173660004,0.0849,99111.0,99110.0,0.050466]
[1736173660507,0.36156,99130.0,99105.0,0.110468]
[1736173660712,0.050457,99128.0,99127.0,0.050456]
[1736173660910,0.15,99128.0,99127.0,0.050456]
[1736173661112,0.00076,99130.0,99127.0,0.050456]